fUST/lending_fUST_20241214
["ID","MTS","AMOUNT","RATE_DAILY","PERIOD"]
[345342487,1734162641166,-500.0,0.00028493,7]
[345342489,1734162641175,-500.0,0.00028493,7]
[345342491,1734162641184,-500.0,0.00028493,7]
[345342493,1734162641193,-500.0,0.00028493,7]
[345342495,1734162641202,-500.0,0.00028493,7]
[345342497,1734162641211,-500.0,0.00028493,7]
[345342499,1734162641220,-500.0,0.00028493,7]
[345342501,1734162641230,-500.0,0.00028493,7]
[345342503,1734162641239,-500.0,0.00028493,7]
[345342505,1734162641248,-500.0,0.00028493,7]
[345342507,1734162641259,-1563.97,0.00028493,7]
[345342509,1734162641269,-500.0,0.00028493,7]
[345342511,1734162641279,-4683.74,0.00028493,7]
[345342513,1734162641289,-500.0,0.00028493,7]
[345342515,1734162641298,-500.0,0.00028493,7]
[345342517,1734162641308,-955.94,0.00028493,7]
[345342519,1734162641318,-500.0,0.00028493,7]
[345342521,1734162641327,-500.0,0.00028493,7]
[345342523,1734162641337,-1820.65,0.00028493,5]
[345342525,1734162641347,-500.0,0.00028493,7]
[345342527,1734162641355,-500.0,0.00028493,7]
[345342529,1734162641364,-670.12,0.00028493,7]
[345342531,1734162641374,-500.0,0.00028493,7]
[345342533,1734162641383,-500.0,0.00028493,7]
[345342535,1734162641393,-500.0,0.00028493,7]
[345342537,1734162641402,-3258.33,0.00028493,7]
[345342539,1734162641411,-153.0,0.00028528,2]
[345342541,1734162641420,-153.0,0.00028528,2]
[345342543,1734162641429,-153.0,0.00028528,2]
[345342545,1734162641438,-153.0,0.00028528,2]
[345342547,1734162641447,-153.0,0.00028528,2]
[345342549,1734162641458,-153.0,0.00028528,2]
[345342551,1734162641467,-153.0,0.00028528,2]
[345342553,1734162641476,-153.0,0.00028528,2]
[345342555,1734162641486,-153.0,0.00028528,2]
[345342557,1734162641495,-153.0,0.00028528,2]
[345342559,1734162641505,-153.0,0.00028528,2]
[345342561,1734162641519,-153.0,0.00028528,2]
[345342563,1734162641528,-153.0,0.00028528,2]
[345342565,1734162641537,-153.0,0.00028528,2]
[345342567,1734162641547,-153.0,0.00028528,2]
[345342569,1734162641556,-153.0,0.00028528,2]
[345342571,1734162641566,-714.094062,0.00028675,15]
[345342573,1734162641575,-444.432,0.0002876,2]
[345342575,1734162641585,-500.0,0.00028767,7]
[345342577,1734162641594,-500.0,0.00028767,7]
[345342579,1734162641603,-500.0,0.00028767,9]
[345342581,1734162641613,-500.0,0.00028767,7]
[345342583,1734162641622,-500.0,0.00028767,7]
[345342585,1734162641632,-500.0,0.00028767,7]
[345342587,1734162641641,-500.0,0.00028767,7]
[345342589,1734162641651,-500.0,0.00028767,7]
[345342591,1734162641660,-500.0,0.00028767,7]
[345342593,1734162641669,-500.0,0.00028767,7]
[345342595,1734162641679,-513.46,0.00028767,7]
[345342597,1734162641689,-168.0,0.00028767,7]
[345342599,1734162641698,-500.0,0.00028767,7]
[345342601,1734162641708,-500.0,0.00028767,7]
[345342603,1734162641717,-500.0,0.00028767,7]
[345342605,1734162641726,-500.0,0.00028767,7]
[345342607,1734162641735,-500.0,0.00028767,7]
[345342609,1734162641744,-878.79,0.00028767,7]
[345342611,1734162641754,-500.0,0.00028767,7]
[345342613,1734162641763,-500.0,0.00028767,7]
[345342625,1734162641864,-500.0,0.00028767,7]
[345342627,1734162641874,-692.89,0.00028767,7]
[345342629,1734162641883,-500.0,0.00028767,7]
[345342631,1734162641892,-500.0,0.00028767,7]
[345342633,1734162641901,-500.0,0.00028767,7]
[345342635,1734162641911,-500.0,0.00028767,7]
[345342637,1734162641920,-500.0,0.00028767,7]
[345342639,1734162641930,-468.40310154,0.00028767,7]
[345342641,1734162641939,-500.0,0.00028767,7]
[345342643,1734162641948,-500.0,0.00028767,7]
[345342645,1734162641958,-500.0,0.00028767,7]
[345342647,1734162641967,-500.0,0.00028767,7]
[345342649,1734162641976,-1563.97,0.00028767,7]
[345342651,1734162641986,-500.0,0.00028767,7]
[345342653,1734162641995,-4683.74,0.00028767,7]
[345342655,1734162642004,-500.0,0.00028767,7]
[345342657,1734162642014,-500.0,0.00028767,7]
[345342659,1734162642023,-955.94,0.00028767,7]
[345342661,1734162642033,-500.0,0.00028767,7]
[345342663,1734162642042,-500.0,0.00028767,7]
[345342665,1734162642051,-1820.65,0.00028767,5]
[345342667,1734162642061,-500.0,0.00028767,7]
[345342669,1734162642070,-500.0,0.00028767,7]
[345342671,1734162642080,-670.12,0.00028767,7]
[345342673,1734162642092,-500.0,0.00028767,7]
[345342675,1734162642101,-500.0,0.00028767,7]
[345342677,1734162642111,-500.0,0.00028767,7]
[345342679,1734162642120,-3258.33,0.00028767,7]
[345342681,1734162642130,-300.0,0.000288,14]
[345342683,1734162642140,-164.45759352,0.0002893,2]
[345342685,1734162642150,-420.0,0.00028934,2]
[345342687,1734162642159,-303.14853096,0.00029,2]
[345342689,1734162642170,-303.15762923,0.00029,2]
[345342691,1734162642179,-326.62607043,0.0002904,2]
[345342693,1734162642188,-500.0,0.00029041,7]
[345342695,1734162642197,-500.0,0.00029041,7]
[345342697,1734162642207,-500.0,0.00029041,7]
[345342699,1734162642217,-500.0,0.00029041,7]
[345342701,1734162642226,-366.88544265,0.00029041,7]
[345342703,1734162642235,-500.0,0.00029041,7]
[345342705,1734162642244,-500.0,0.00029041,7]
[345342707,1734162642253,-500.0,0.00029041,7]
[345342709,1734162642263,-500.0,0.00029041,7]
[345342711,1734162642272,-513.46,0.00029041,7]
[345342713,1734162642282,-168.0,0.00029041,7]
[345342715,1734162642292,-500.0,0.00029041,7]
[345342717,1734162642301,-500.0,0.00029041,7]
[345342719,1734162642310,-500.0,0.00029041,7]
[345342721,1734162642320,-500.0,0.00029041,7]
[345342723,1734162642329,-500.0,0.00029041,7]
[345342725,1734162642339,-878.79,0.00029041,7]
[345342727,1734162642349,-500.0,0.00029041,7]
[345342729,1734162642359,-500.0,0.00029041,7]
[345342731,1734162642368,-500.0,0.00029041,7]
[345342733,1734162642378,-692.89,0.00029041,7]
[345342735,1734162642387,-500.0,0.00029041,7]
[345342737,1734162642398,-500.0,0.00029041,7]
[345342739,1734162642407,-500.0,0.00029041,7]
[345342741,1734162642416,-500.0,0.00029041,7]
[345342743,1734162642426,-500.0,0.00029041,7]
[345342745,1734162642435,-500.0,0.00029041,7]
[345342747,1734162642445,-500.0,0.00029041,7]
[345342749,1734162642455,-500.0,0.00029041,7]
[345342751,1734162642464,-500.0,0.00029041,7]
[345342753,1734162642474,-1563.97,0.00029041,7]
[345342755,1734162642483,-500.0,0.00029041,7]
[345342757,1734162642493,-4683.74,0.00029041,7]
[345342759,1734162642504,-500.0,0.00029041,7]
[345342761,1734162642514,-500.0,0.00029041,7]
[345342763,1734162642523,-955.94,0.00029041,7]
[345342765,1734162642533,-500.0,0.00029041,7]
[345342768,1734162642543,-500.0,0.00029041,7]
[345342769,1734162642551,-1820.65,0.00029041,5]
[345342772,1734162642561,-500.0,0.00029041,7]
[345342773,1734162642570,-500.0,0.00029041,7]
[345342776,1734162642580,-670.12,0.00029041,7]
[345342778,1734162642590,-382.43544326,0.00029041,7]
[345342780,1734162642599,-500.0,0.00029041,7]
[345342781,1734162642608,-500.0,0.00029041,7]
[345342784,1734162642618,-3258.33,0.00029041,7]
[345342786,1734162642627,-303.14853096,0.0002929,2]
[345342787,1734162642636,-303.15762923,0.0002929,2]
[345342790,1734162642646,-500.0,0.00029315,7]
[345342792,1734162642655,-500.0,0.00029315,7]
[345342793,1734162642664,-434.83993953,0.00029315,7]
[345342796,1734162642673,-500.0,0.00029315,7]
[345342798,1734162642683,-500.0,0.00029315,7]
[345342800,1734162642692,-500.0,0.00029315,7]
[345342802,1734162642702,-479.92634614,0.00029315,7]
[345342803,1734162642711,-500.0,0.00029315,7]
[345342805,1734162642723,-513.46,0.00029315,7]
[345342806,1734162642732,-261.74256017,0.00029315,7]
[345342807,1734162642740,-500.0,0.00029315,7]
[345342808,1734162642749,-500.0,0.00029315,7]
[345342809,1734162642759,-500.0,0.00029315,7]
[345342810,1734162642767,-500.0,0.00029315,7]
[345342811,1734162642777,-500.0,0.00029315,7]
[345342812,1734162642786,-878.79,0.00029315,7]
[345342813,1734162642795,-500.0,0.00029315,7]
[345342814,1734162642804,-500.0,0.00029315,7]
[345342815,1734162642813,-500.0,0.00029315,7]
[345342816,1734162642822,-692.89,0.00029315,7]
[345342817,1734162642831,-500.0,0.00029315,7]
[345342819,1734162642840,-500.0,0.00029315,7]
[345342821,1734162642850,-500.0,0.00029315,7]
[345342823,1734162642859,-500.0,0.00029315,7]
[345342825,1734162642868,-500.0,0.00029315,7]
[345342827,1734162642878,-500.0,0.00029315,7]
[345342829,1734162642887,-500.0,0.00029315,7]
[345342831,1734162642896,-500.0,0.00029315,7]
[345342833,1734162642906,-500.0,0.00029315,7]
[345342835,1734162642915,-1563.97,0.00029315,7]
[345342837,1734162642925,-500.0,0.00029315,7]
[345342839,1734162642935,-4683.74,0.00029315,7]
[345342841,1734162642944,-500.0,0.00029315,7]
[345342843,1734162642955,-500.0,0.00029315,7]
[345342845,1734162642966,-955.94,0.00029315,7]
[345342847,1734162642976,-500.0,0.00029315,7]
[345342849,1734162642985,-500.0,0.00029315,7]
[345342851,1734162642994,-1820.65,0.00029315,5]
[345342853,1734162643004,-500.0,0.00029315,7]
[345342855,1734162643013,-500.0,0.00029315,7]
[345342857,1734162643022,-670.12,0.00029315,7]
[345342859,1734162643031,-500.0,0.00029315,7]
[345342861,1734162643041,-500.0,0.00029315,7]
[345342863,1734162643050,-3258.33,0.00029315,7]
[345342865,1734162643059,-164.45759352,0.00029475,2]
[345342866,1734162643069,-303.14853096,0.0002958,2]
[345342868,1734162643078,-303.15762923,0.0002958,2]
[345342870,1734162643088,-477.26171814,0.00029589,7]
[345342873,1734162643101,-500.0,0.00029589,7]
[345342877,1734162643110,-500.0,0.00029589,7]
[345342879,1734162643120,-500.0,0.00029589,7]
[345342881,1734162643131,-500.0,0.00029589,7]
[345342882,1734162643140,-500.0,0.00029589,7]
[345342884,1734162643149,-513.46,0.00029589,7]
[345342886,1734162643158,-500.0,0.00029589,7]
[345342888,1734162643167,-157.73129098,0.00029589,7]
[345342890,1734162643177,-500.0,0.00029589,7]
[345342892,1734162643186,-500.0,0.00029589,7]
[345342894,1734162643196,-500.0,0.00029589,7]
[345342896,1734162643205,-878.79,0.00029589,7]
[345342898,1734162643215,-500.0,0.00029589,7]
[345342900,1734162643225,-638.47278184,0.00029589,7]
[345342902,1734162643235,-500.0,0.00029589,7]
[345342904,1734162643245,-692.89,0.00029589,7]
[345342906,1734162643255,-500.0,0.00029589,7]
[345342908,1734162643264,-500.0,0.00029589,7]
[345342910,1734162643274,-500.0,0.00029589,7]
[345342912,1734162643283,-500.0,0.00029589,7]
[345342914,1734162643292,-380.30116879,0.00029589,7]
[345342916,1734162643302,-500.0,0.00029589,7]
[345342918,1734162643312,-500.0,0.00029589,7]
[345342920,1734162643321,-500.0,0.00029589,7]
[345342922,1734162643331,-500.0,0.00029589,7]
[345342924,1734162643340,-1563.97,0.00029589,7]
[345342926,1734162643350,-500.0,0.00029589,7]
[345342928,1734162643359,-4683.74,0.00029589,7]
[345342930,1734162643369,-500.0,0.00029589,7]
[345342932,1734162643379,-500.0,0.00029589,7]
[345342935,1734162643388,-955.94,0.00029589,7]
[345342937,1734162643397,-500.0,0.00029589,7]
[345342938,1734162643407,-500.0,0.00029589,7]
[345342940,1734162643416,-1820.65,0.00029589,5]
[345342942,1734162643425,-500.0,0.00029589,7]
[345342944,1734162643435,-500.0,0.00029589,7]
[345342946,1734162643445,-670.12,0.00029589,7]
[345342948,1734162643456,-500.0,0.00029589,7]
[345342950,1734162643468,-500.0,0.00029589,7]
[345342952,1734162643478,-3258.33,0.00029589,7]
[345342954,1734162643487,-500.0,0.00029863,7]
[345342956,1734162643497,-500.0,0.00029863,7]
[345342959,1734162643506,-500.0,0.00029863,7]
[345342961,1734162643515,-593.57257507,0.00029863,7]
[345342963,1734162643525,-500.0,0.00029863,7]
[345342965,1734162643535,-513.46,0.00029863,7]
[345342967,1734162643544,-500.0,0.00029863,7]
[345342969,1734162643553,-500.0,0.00029863,7]
[345342971,1734162643562,-500.0,0.00029863,7]
[345342973,1734162643571,-500.0,0.00029863,7]
[345342975,1734162643581,-878.79,0.00029863,7]
[345342977,1734162643591,-266.2841792,0.00029863,7]
[345342979,1734162643601,-500.0,0.00029863,7]
[345342981,1734162643611,-692.89,0.00029863,7]
[345342983,1734162643620,-500.0,0.00029863,7]
[345342985,1734162643629,-218.66708763,0.00029863,7]
[345342987,1734162643639,-500.0,0.00029863,7]
[345342989,1734162643647,-500.0,0.00029863,7]
[345342991,1734162643657,-500.0,0.00029863,7]
[345342993,1734162643666,-500.0,0.00029863,7]
[345342995,1734162643675,-500.0,0.00029863,7]
[345342997,1734162643684,-500.0,0.00029863,7]
[345342999,1734162643693,-1563.97,0.00029863,7]
[345343001,1734162643702,-500.0,0.00029863,7]
[345343003,1734162643713,-4683.74,0.00029863,7]
[345343005,1734162643722,-500.0,0.00029863,7]
[345343007,1734162643731,-500.0,0.00029863,7]
[345343009,1734162643741,-955.94,0.00029863,7]
[345343011,1734162643750,-500.0,0.00029863,7]
[345343013,1734162643759,-500.0,0.00029863,7]
[345343015,1734162643768,-1820.65,0.00029863,5]
[345343017,1734162643778,-500.0,0.00029863,7]
[345343019,1734162643787,-500.0,0.00029863,7]
[345343021,1734162643797,-670.12,0.00029863,7]
[345343023,1734162643806,-500.0,0.00029863,7]
[345343025,1734162643816,-500.0,0.00029863,7]
[345343027,1734162643825,-181.333333,0.00029868,2]
[345343029,1734162643834,-303.14853096,0.0002987,2]
[345343031,1734162643843,-303.15762923,0.0002987,2]
[345343033,1734162643852,-181.22004255,0.00029919,2]
[345343035,1734162643862,-198762.40072095,0.0003,120]
[345343037,1734162643871,-231.0,0.0003,2]
[345343039,1734162643885,-195240.12645006,0.0003,120]
[345343041,1734162643894,-18337.10835666,0.00030019,2]
[345343043,1734162643903,-164.45759352,0.00030019,2]
[345343045,1734162643912,-151.0,0.00030119,7]
[345343047,1734162643921,-151.0,0.00030119,7]
[345343049,1734162643930,-151.0,0.00030119,7]
[345343051,1734162643939,-151.0,0.00030119,7]
[345343053,1734162643948,-151.0,0.00030119,7]
[345343055,1734162643959,-151.0,0.00030119,7]
[345343057,1734162643967,-151.0,0.00030119,7]
[345343059,1734162643978,-151.0,0.00030119,7]
[345343061,1734162643987,-151.0,0.00030119,7]
[345343063,1734162643996,-151.0,0.00030119,7]
[345343065,1734162644009,-151.0,0.00030119,7]
[345343067,1734162644018,-151.0,0.00030119,7]
[345343069,1734162644028,-151.0,0.00030119,7]
[345343071,1734162644039,-151.0,0.00030119,7]
[345343073,1734162644048,-295.448104,0.00030119,7]
[345343075,1734162644058,-834.98348568,0.00030119,2]
[345343077,1734162644067,-32592.63506365,0.00030119,2]
[345343079,1734162644076,-2439.97857229,0.00030119,10]
[345343275,1734163832725,-192.000001,0.00026419,2]
[345343277,1734163832735,-167.2793281,0.00026632,2]
[345343279,1734163832744,-577.115286,0.000273,13]
[345343281,1734163832754,-300.0,0.00027396,2]
[345343283,1734163832763,-300.0,0.00027396,2]
[345343286,1734163832773,-643.91112432,0.00027397,7]
[345343288,1734163832783,-634.99159536,0.00027397,60]
[345343290,1734163832792,-1968.05,0.000274,2]
[345343291,1734163832801,-500.0,0.00027669,7]
[345343293,1734163832810,-500.0,0.00027669,7]
[345343295,1734163832819,-500.0,0.00027669,7]
[345343297,1734163832829,-500.0,0.00027669,7]
[345343299,1734163832839,-500.0,0.00027669,7]
[345343301,1734163832849,-500.0,0.00027669,7]
[345343303,1734163832859,-500.0,0.00027669,7]
[345343305,1734163832869,-500.0,0.00027669,7]
[345343307,1734163832878,-454.23649415,0.00027669,7]
[345343310,1734163832888,-500.0,0.00027669,7]
[345343311,1734163832897,-2732.18,0.00027669,7]
[345343313,1734163832907,-912.31,0.00027669,7]
[345343316,1734163832916,-500.0,0.00027669,7]
[345343318,1734163832926,-466.51279587,0.00027669,7]
[345343319,1734163832935,-557.63,0.00027669,7]
[345343321,1734163832945,-500.0,0.00027669,7]
[345343323,1734163832954,-500.0,0.00027669,7]
[345343325,1734163832964,-1062.05,0.00027669,5]
[345343328,1734163832974,-500.0,0.00027669,7]
[345343332,1734163832985,-2036.46,0.00027669,7]
[345343335,1734163832995,-500.0,0.0002767,7]
[345343338,1734163833004,-500.0,0.0002767,7]
[345343341,1734163833013,-500.0,0.0002767,7]
[345343343,1734163833023,-500.0,0.0002767,7]
[345343346,1734163833033,-500.0,0.0002767,7]
[345343349,1734163833043,-500.0,0.0002767,7]
[345343353,1734163833054,-512.63,0.0002767,7]
[345343354,1734163833064,-500.0,0.0002767,7]
[345343357,1734163833074,-500.0,0.0002767,7]
[345343361,1734163833084,-500.0,0.0002767,7]
[345343363,1734163833095,-500.0,0.0002767,7]
[345343366,1734163833105,-500.0,0.0002767,7]
[345343368,1734163833115,-500.0,0.0002767,7]
[345343371,1734163833126,-500.0,0.0002767,7]
[345343374,1734163833135,-667.17147372,0.00027843,2]
[345343376,1734163833146,-500.0,0.00027943,7]
[345343379,1734163833156,-500.0,0.00027943,7]
[345343381,1734163833165,-500.0,0.00027943,7]
[345343384,1734163833176,-500.0,0.00027943,7]
[345343387,1734163833192,-500.0,0.00027943,7]
[345343389,1734163833203,-500.0,0.00027943,7]
[345343392,1734163833213,-500.0,0.00027943,7]
[345343395,1734163833227,-500.0,0.00027943,7]
[345343398,1734163833237,-500.0,0.00027943,7]
[345343401,1734163833248,-2732.18,0.00027943,7]
[345343404,1734163833258,-912.31,0.00027943,7]
[345343406,1734163833269,-500.0,0.00027943,7]
[345343409,1734163833280,-557.63,0.00027943,7]
[345343412,1734163833291,-500.0,0.00027943,7]
[345343414,1734163833301,-500.0,0.00027943,7]
[345343417,1734163833311,-1062.05,0.00027943,5]
[345343420,1734163833320,-500.0,0.00027943,7]
[345343422,1734163833330,-1100.55007598,0.00027943,7]
[345343751,1734163838679,-935.90992402,0.00027943,7]
[345343752,1734163838690,-500.0,0.00027944,7]
[345343753,1734163838701,-464.09007598,0.00027944,7]
[345343764,1734163843828,-35.90992402,0.00027944,7]
[345343765,1734163843838,-500.0,0.00027944,7]
[345343766,1734163843850,-500.0,0.00027944,7]
[345343767,1734163843859,-500.0,0.00027944,7]
[345343768,1734163843869,-500.0,0.00027944,7]
[345343769,1734163843878,-512.63,0.00027944,7]
[345343770,1734163843888,-500.0,0.00027944,7]
[345343771,1734163843897,-500.0,0.00027944,7]
[345343772,1734163843912,-500.0,0.00027944,7]
[345343773,1734163843922,-153.81936438,0.00027944,7]
[345343777,1734163957849,220.0,0.00020222,2]
[345343844,1734165031911,-500.0,0.000256,2]
[345343845,1734165031921,-181.333333,0.00026715,2]
[345343846,1734165031931,-776.9570279,0.00026775,2]
[345343847,1734165031942,-1771.25,0.000274,2]
[345343848,1734165031951,-604.33223873,0.00027864,2]
[345343849,1734165031961,-300.0,0.00027939,2]
[345343850,1734165031970,-300.0,0.00027939,2]
[345343851,1734165031979,-500.0,0.0002794,7]
[345343852,1734165031989,-500.0,0.0002794,7]
[345343853,1734165031998,-500.0,0.0002794,7]
[345343854,1734165032007,-500.0,0.0002794,7]
[345343855,1734165032017,-500.0,0.0002794,7]
[345343856,1734165032026,-500.0,0.0002794,7]
[345343857,1734165032035,-500.0,0.0002794,7]
[345343858,1734165032045,-500.0,0.0002794,7]
[345343859,1734165032054,-500.0,0.0002794,7]
[345343861,1734165032064,-500.0,0.0002794,7]
[345343863,1734165032073,-500.0,0.0002794,7]
[345343865,1734165032082,-69.15130746,0.0002794,7]
[345343870,1734165032122,-430.84869254,0.0002794,7]
[345343872,1734165032133,-500.0,0.0002794,7]
[345343874,1734165032146,-500.0,0.0002794,7]
[345343875,1734165032155,-500.0,0.0002794,7]
[345343876,1734165032165,-2002.52,0.0002794,7]
[345343877,1734165032175,-500.0,0.00027941,7]
[345343878,1734165032184,-500.0,0.00027941,7]
[345343879,1734165032194,-500.0,0.00027941,7]
[345343880,1734165032204,-500.0,0.00027941,7]
[345343881,1734165032214,-500.0,0.00027941,7]
[345343882,1734165032223,-500.0,0.00027941,7]
[345343883,1734165032232,-543.15,0.00027941,7]
[345343884,1734165032241,-500.0,0.00027941,7]
[345343885,1734165032251,-638.47278184,0.00027941,7]
[345343886,1734165032261,-500.0,0.00027941,7]
[345343887,1734165032271,-500.0,0.00027941,7]
[345343888,1734165032282,-500.0,0.00027941,7]
[345343889,1734165032292,-380.30116879,0.00027941,7]
[345343890,1734165032301,-500.0,0.00027941,7]
[345343891,1734165032311,-2894.81,0.00027941,7]
[345343892,1734165032320,-590.82,0.00027941,7]
[345343893,1734165032329,-1125.27,0.00027941,5]
[345343894,1734165032339,-500.0,0.00027941,7]
[345343895,1734165032349,-500.0,0.00027941,7]
[345343896,1734165032359,-500.0,0.00027941,7]
[345343897,1734165032369,-500.0,0.00027942,7]
[345343898,1734165032378,-477.26171814,0.00027942,7]
[345343899,1734165032387,-500.0,0.00027942,7]
[345343900,1734165032400,-500.0,0.00027942,7]
[345343901,1734165032409,-500.0,0.00027942,7]
[345343902,1734165032418,-500.0,0.00027942,7]
[345343903,1734165032427,-165.05561205,0.00027964,18]
[345343904,1734165032437,-3200.0,0.00028064,2]
[345343905,1734165032447,-500.0,0.00028064,2]
[345343906,1734165032456,-604.33223867,0.00028172,2]
[345343907,1734165032465,-500.0,0.00028214,7]
[345343908,1734165032475,-473.25779665,0.00028214,7]
[345343909,1734165032484,-500.0,0.00028214,7]
[345343910,1734165032494,-218.66708763,0.00028214,7]
[345343911,1734165032504,-500.0,0.00028214,7]
[345343912,1734165032514,-500.0,0.00028214,7]
[345343913,1734165032524,-500.0,0.00028214,7]
[345343914,1734165032533,-500.0,0.00028214,7]
[345343915,1734165032542,-500.0,0.00028214,7]
[345343916,1734165032552,-500.0,0.00028214,7]
[345343917,1734165032561,-500.0,0.00028214,7]
[345343918,1734165032571,-500.0,0.00028214,7]
[345343919,1734165032581,-500.0,0.00028214,7]
[345343920,1734165032590,-500.0,0.00028214,7]
[345343921,1734165032600,-500.0,0.00028214,7]
[345343922,1734165032609,-500.0,0.00028214,7]
[345343923,1734165032619,-2002.52,0.00028214,7]
[345343924,1734165032628,-41230.71258961,0.00028215,2]
[345343925,1734165032637,-834.98348568,0.00028215,2]
[345343926,1734165032653,-593.57257507,0.00028215,7]
[345343927,1734165032662,-500.0,0.00028215,7]
[345343928,1734165032677,-500.0,0.00028215,7]
[345343929,1734165032686,-500.0,0.00028215,7]
[345343930,1734165032696,-500.0,0.00028215,7]
[345343931,1734165032705,-500.0,0.00028215,7]
[345343932,1734165032714,-543.15,0.00028215,7]
[345343933,1734165032724,-266.2841792,0.00028215,7]
[345343934,1734165032734,-500.0,0.00028215,7]
[345343935,1734165032743,-500.0,0.00028215,7]
[345343936,1734165032753,-500.0,0.00028215,7]
[345343937,1734165032763,-2894.81,0.00028215,7]
[345343938,1734165032772,-590.82,0.00028215,7]
[345343939,1734165032782,-1125.27,0.00028215,5]
[345343940,1734165032791,-500.0,0.00028215,7]
[345343941,1734165032802,-500.0,0.00028215,7]
[345343942,1734165032811,-500.0,0.00028215,7]
[345343943,1734165032821,-500.0,0.00028216,7]
[345343944,1734165032831,-500.0,0.00028216,7]
[345343945,1734165032840,-500.0,0.00028216,7]
[345343946,1734165032852,-499.85000018,0.00028216,7]
[345343947,1734165032862,-500.0,0.00028216,7]
[345343948,1734165032871,-500.0,0.00028217,7]
[345343949,1734165032881,-1178.5,0.00028345,15]
[345343950,1734165032896,-181.22004255,0.000284,2]
[345343951,1734165032906,-604.33223867,0.00028479,2]
[345343952,1734165032915,-500.0,0.00028488,7]
[345343953,1734165032923,-500.0,0.00028488,7]
[345343954,1734165032933,-500.0,0.00028488,7]
[345343955,1734165032943,-500.0,0.00028488,7]
[345343956,1734165032952,-326.93877886,0.00028488,7]
[345343957,1734165032962,-500.0,0.00028488,7]
[345343958,1734165032971,-500.0,0.00028488,7]
[345343959,1734165032980,-500.0,0.00028488,7]
[345343960,1734165032990,-500.0,0.00028488,7]
[345343961,1734165032999,-500.0,0.00028488,7]
[345343962,1734165033008,-500.0,0.00028488,7]
[345343963,1734165033018,-500.0,0.00028488,7]
[345343964,1734165033027,-500.0,0.00028488,7]
[345343965,1734165033037,-2002.52,0.00028488,7]
[345343966,1734165033047,-500.0,0.00028489,7]
[345343967,1734165033056,-500.0,0.00028489,7]
[345343968,1734165033065,-500.0,0.00028489,7]
[345343969,1734165033075,-380.33247655,0.00028489,7]
[345343970,1734165033084,-500.0,0.00028489,7]
[345343971,1734165033094,-543.15,0.00028489,7]
[345343972,1734165033104,-500.0,0.00028489,7]
[345343973,1734165033113,-500.0,0.00028489,7]
[345343974,1734165033123,-500.0,0.00028489,7]
[345343975,1734165033133,-2894.81,0.00028489,7]
[345343976,1734165033146,-590.82,0.00028489,7]
[345343977,1734165033155,-1125.27,0.00028489,5]
[345343978,1734165033165,-500.0,0.00028489,7]
[345343979,1734165033175,-500.0,0.00028489,7]
[345343980,1734165033185,-500.0,0.00028489,7]